bitfinex-derivatives/quotes_SOLF0:USTF0_20251101
["timestamp","ask_amount","ask_price","bid_price","bid_amount"]
[1762005163284,8.52989119,185.26,185.18,2.88]
[1762005163486,3.28957681,185.27,185.18,2.88]
[1762005163785,8.53316024,185.26,185.18,2.88]
[1762005163982,3.28957681,185.27,185.18,2.88]
[1762005164190,8.53283692,185.26,185.18,2.88]
[1762005164386,4.44850235,185.25,185.18,2.88]
[1762005164591,3.28957681,185.27,185.19,2.88]
[1762005164795,4.45040984,185.26,185.19,2.88]
[1762005165103,3.28957681,185.27,185.19,2.88]
[1762005165394,8.53645974,185.26,185.19,2.88]
[1762005165599,2.09945083,185.27,185.19,2.88]
[1762005165790,8.53644033,185.26,185.19,2.88]
[1762005165987,2.09945083,185.27,185.19,2.88]
[1762005166188,8.54106366,185.26,185.19,2.88]
[1762005166491,4.45270245,185.25,185.19,2.88]
[1762005166700,2.09945083,185.27,185.19,2.88]
[1762005166999,8.54107851,185.26,185.19,2.88]
[1762005167186,4.45537926,185.25,185.19,2.88]
[1762005167387,2.09945083,185.27,185.2,2.71]
[1762005167597,8.54636576,185.26,185.2,2.71]
[1762005167789,4.45537926,185.25,185.2,2.71]
[1762005167989,2.09945083,185.27,185.2,2.71]
[1762005168185,8.54208397,185.26,185.2,2.71]
[1762005168390,4.45538157,185.25,185.2,2.71]
[1762005168590,2.09945083,185.27,185.2,2.71]
[1762005168791,8.54714897,185.26,185.2,2.71]
[1762005169093,4.45802378,185.25,185.2,2.71]
[1762005169290,2.09945083,185.27,185.2,7.75410639]
[1762005169498,8.55208237,185.26,185.19,5.04410639]
[1762005169694,8.55208237,185.25,185.19,5.04410639]
[1762005169893,4.46061145,185.24,185.19,7.75410639]
[1762005170197,2.09945083,185.27,185.19,7.75410639]
[1762005170397,8.55288696,185.26,185.19,7.75410639]
[1762005170589,8.55288696,185.25,185.2,2.71]
[1762005170789,4.46107319,185.24,185.2,2.71]
[1762005170989,2.09945083,185.27,185.2,2.71]
[1762005171190,8.57715987,185.26,185.2,2.71]
[1762005171393,8.57715987,185.25,185.21,2.71]
[1762005171594,4.48463536,185.24,185.21,2.71]
[1762005171790,2.09945083,185.27,185.21,2.71]
[1762005171994,8.5795456,185.26,185.21,2.71]
[1762005172194,8.5795456,185.25,185.21,2.71]
[1762005172395,4.48588172,185.24,185.21,2.71]
[1762005172598,2.09945083,185.27,185.21,2.71]
[1762005172799,8.58169122,185.26,185.21,2.71]
[1762005173002,8.58169122,185.25,185.21,2.71]
[1762005173200,8.58169122,185.24,185.21,2.71]
[1762005173496,2.09945083,185.27,185.21,2.71]
[1762005173701,8.58339316,185.26,185.21,2.71]
[1762005173899,8.58339316,185.25,185.21,2.71]
[1762005174101,4.48789304,185.24,185.21,2.71]
[1762005174300,2.09945083,185.27,185.21,2.71]
[1762005174497,8.5854996,185.26,185.21,2.71]
[1762005174697,8.5854996,185.25,185.21,2.71]
[1762005174897,4.4889672,185.24,185.22,2.71]
[1762005175201,2.09945083,185.28,185.22,2.71]
[1762005175402,8.58759784,185.27,185.22,2.71]
[1762005175600,8.58759784,185.26,185.22,2.71]
[1762005175802,8.58759784,185.25,185.22,2.71]
[1762005176002,4.49006387,185.24,185.21,7.75410639]
[1762005176201,2.09945083,185.28,185.21,7.75410639]
[1762005176502,8.59011068,185.27,185.21,7.75410639]
[1762005176701,8.59011068,185.26,185.21,7.75410639]
[1762005176902,8.59011068,185.25,185.21,7.75410639]
[1762005177103,4.49137661,185.24,185.22,2.71]
[1762005177305,2.09945083,185.28,185.22,2.71]
[1762005177495,8.59303214,185.27,185.22,2.71]
[1762005177691,8.59303214,185.26,185.22,2.71]
[1762005177899,8.59303214,185.25,185.22,2.71]
[1762005178098,4.49290562,185.24,185.22,2.71]
[1762005178404,2.09945083,185.28,185.22,7.75410639]
[1762005178605,8.59641121,185.27,185.22,7.75410639]
[1762005178904,8.59641121,185.26,185.22,7.75410639]
[1762005179209,8.59641121,185.25,185.22,7.75410639]
[1762005179404,8.59641121,185.24,185.22,7.75410639]
[1762005179592,2.09945083,185.28,185.22,7.75410639]
[1762005179898,8.59967485,185.27,185.22,7.75410639]
[1762005180098,8.59967485,185.26,185.22,7.75410639]
[1762005180296,8.59967485,185.25,185.22,7.75410639]
[1762005180496,8.59967485,185.24,185.22,7.75410639]
[1762005180696,2.09945083,185.28,185.22,7.75410639]
[1762005180897,8.60220245,185.27,185.22,7.75410639]
[1762005181095,8.60247485,185.26,185.22,7.75410639]
[1762005181295,8.60247485,185.25,185.23,5.04410639]
[1762005181610,8.60247485,185.24,185.23,5.04410639]
[1762005182505,8.60247485,185.24,185.22,7.75410639]
[1762005182708,4.49778638,185.23,185.22,7.75410639]
[1762005183209,8.60572575,185.23,185.22,7.75410639]
[1762005183409,8.60572575,185.23,185.22,2.71]
[1762005185607,8.60572575,185.23,185.22,5.05237495]
[1762005188512,8.60572575,185.23,185.2,9.34990424]
[1762005188705,8.60572575,185.22,185.2,9.34990424]
[1762005188906,8.60572575,185.21,185.2,9.34990424]
[1762005189916,8.60572575,185.21,185.2,6.63990424]
[1762005190513,8.60572575,185.21,185.19,9.34990424]
[1762005190707,8.60572575,185.2,185.19,9.34990424]
[1762005191203,8.60572575,185.2,185.19,2.71]
[1762005193216,4.49778638,185.2,185.19,2.71]
[1762005194106,2.09945083,185.28,185.19,2.71]
[1762005194313,4.11475099,185.27,185.24,5.05663212]
[1762005194515,4.11475099,185.26,185.24,5.05663212]
[1762005194716,4.11475099,185.25,185.24,5.05663212]
[1762005194905,6.21420182,185.25,185.23,5.05663212]
[1762005195112,4.11475099,185.24,185.23,5.05663212]
[1762005197418,4.11475099,185.24,185.22,5.05663212]
[1762005197619,4.11475099,185.23,185.22,5.05663212]
[1762005203818,4.11475099,185.23,185.2,5.05663212]
[1762005204007,4.11475099,185.22,185.2,5.05663212]
[1762005204209,4.11475099,185.21,185.2,5.05663212]
[1762005204614,4.11475099,185.21,185.2,2.72]
[1762005206114,8.61784727,185.21,185.2,2.72]
[1762005207017,8.61784727,185.21,185.2,9.46217616]
[1762005208427,8.61784727,185.21,185.2,2.72]
[1762005210225,2.09945083,185.27,185.21,2.72]
[1762005210527,8.63314043,185.26,185.24,5.05490554]
[1762005210829,8.63314043,185.25,185.24,7.77490554]
[1762005211131,8.63314043,185.25,185.24,5.05490554]
[1762005216331,8.63257452,185.25,185.24,5.05490554]
[1762005219533,8.63257452,185.25,185.23,5.05490554]
[1762005219831,8.63257452,185.24,185.22,5.05490554]
[1762005220022,8.63257452,185.23,185.22,5.05490554]
[1762005220223,8.63257452,185.23,185.21,2.72]
[1762005220431,8.63257452,185.22,185.21,2.72]
[1762005220632,8.63257452,185.22,185.21,9.45987405]
[1762005220833,8.63261162,185.22,185.21,9.45987405]
[1762005221233,8.63261162,185.22,185.21,2.72]
[1762005222227,2.09945083,185.28,185.21,2.72]
[1762005222435,8.63248103,185.27,185.24,7.77353885]
[1762005222737,8.63248103,185.26,185.24,5.05353885]
[1762005222932,8.63248103,185.25,185.24,5.05353885]
[1762005223322,8.63248103,185.25,185.24,7.77353885]
[1762005224238,8.63248103,185.25,185.24,5.05353885]
[1762005226439,8.63199474,185.25,185.24,7.93353885]
[1762005226631,4.50254063,185.25,185.24,9.6180518]
[1762005226835,8.63277216,185.25,185.24,2.88]
[1762005230741,8.62156597,185.25,185.24,2.88]
[1762005231442,8.62156597,185.25,185.23,9.6180518]
[1762005231643,4.50254063,185.24,185.23,9.6180518]
[1762005233133,4.50254063,185.24,185.18,81.72685239]
[1762005233134,8.2633045,185.37,185.24,2.88]
[1762005233338,8.63869145,185.36,185.27,7.92906832]
[1762005233534,8.63869145,185.35,185.27,7.92906832]
[1762005233744,8.63869145,185.34,185.27,7.92906832]
[1762005234037,8.63869145,185.33,185.27,7.92906832]
[1762005234238,8.63869145,185.32,185.28,2.88]
[1762005234435,8.63869145,185.31,185.28,2.88]
[1762005234641,8.63869145,185.3,185.28,2.88]
[1762005234839,8.63869145,185.29,185.28,2.88]
[1762005236144,8.63869145,185.29,185.27,5.04906832]
[1762005236348,8.63869145,185.28,185.27,5.04906832]
[1762005236549,8.63869145,185.28,185.26,7.92906832]
[1762005236755,8.63869145,185.27,185.26,7.92906832]
[1762005239661,4.51970893,185.27,185.26,7.92906832]
[1762005240054,8.63544323,185.27,185.26,7.92906832]
[1762005240955,8.63544323,185.27,185.26,5.04906832]
[1762005241157,8.63544323,185.27,185.25,5.04906832]
[1762005241357,4.51970893,185.26,185.25,7.92906832]
[1762005241554,3.27977896,185.34,185.25,7.92906832]
[1762005241749,8.63236142,185.33,185.26,7.92906832]
[1762005241948,3.27977896,185.34,185.26,7.92906832]
[1762005241949,8.63236142,185.32,185.26,7.92906832]
[1762005242157,8.63236142,185.31,185.27,2.88]
[1762005242463,8.63236142,185.3,185.27,2.88]
[1762005242658,8.63236142,185.29,185.27,2.88]
[1762005242953,8.63236142,185.28,185.27,2.88]
[1762005244662,8.63236142,185.28,185.26,5.04906832]
[1762005244864,4.51634233,185.27,185.26,7.92906832]
[1762005245361,8.63074187,185.27,185.26,2.88]
[1762005246764,8.63074187,185.27,185.25,5.04906832]
[1762005246968,4.51634233,185.26,185.25,7.92906832]
[1762005247169,8.63074301,185.26,185.25,7.92906832]
[1762005247472,4.51634233,185.26,185.25,7.92906832]
[1762005247765,8.63090426,185.26,185.25,2.88]
[1762005248157,8.63090426,185.26,185.25,7.92906832]
[1762005248769,3.27977896,185.34,185.25,2.88]
[1762005248965,8.63100627,185.33,185.26,5.0447523]
[1762005249160,8.63100627,185.32,185.26,7.9247523]
[1762005249369,8.63100627,185.31,185.28,2.88]
[1762005249564,8.63100627,185.3,185.28,7.9247523]
[1762005249867,8.63100627,185.29,185.28,7.9247523]
[1762005251662,8.63100627,185.29,185.28,2.88]
[1762005252361,8.63100627,185.29,185.28,7.9247523]
[1762005256675,4.51566034,185.29,185.28,2.88]
[1762005257268,8.6311666,185.29,185.28,5.04527054]
[1762005258263,8.6311666,185.29,185.26,6.73209109]
[1762005258264,8.6311666,185.29,185.26,5.04527054]
[1762005258468,8.6311666,185.28,185.26,5.04527054]
[1762005258667,8.6311666,185.27,185.26,5.04527054]
[1762005261979,4.11550626,185.27,185.26,5.04527054]
[1762005262179,8.63830904,185.27,185.26,5.04527054]
[1762005263776,8.63830904,185.27,185.25,5.04527054]
[1762005263981,8.63830904,185.26,185.23,81.98527054]
[1762005264281,8.63830904,185.25,185.23,81.98527054]
[1762005264478,8.63830904,185.24,185.23,81.98527054]
[1762005265575,8.63830904,185.24,185.22,5.04527054]
[1762005265779,8.63830904,185.23,185.22,81.98527054]
[1762005266869,8.63830904,185.23,185.22,76.94]
[1762005267469,8.63830904,185.23,185.22,79.7]
[1762005268076,8.63830904,185.23,185.22,76.94]
[1762005270587,8.63830904,185.23,185.22,79.7]
[1762005276495,8.63830904,185.23,185.22,76.94]
[1762005286099,8.63830904,185.23,185.22,79.7]
[1762005287708,8.63830904,185.23,185.22,76.94]
[1762005289001,8.63830904,185.23,185.18,7.86527054]
[1762005289202,8.63830904,185.22,185.19,68.68]
[1762005289402,8.63830904,185.21,185.19,68.68]
[1762005289701,2.09943512,185.26,185.19,68.68]
[1762005289901,8.61231449,185.25,185.19,68.68]
[1762005290102,8.61231449,185.24,185.19,68.68]
[1762005290398,8.61231449,185.23,185.19,71.5]
[1762005290601,8.61231449,185.22,185.19,71.5]
[1762005290801,8.61231449,185.21,185.19,71.5]
[1762005291103,2.09943512,185.26,185.19,71.5]
[1762005291299,8.61607862,185.25,185.19,71.5]
[1762005291598,8.61607862,185.24,185.19,71.5]
[1762005291802,8.61607862,185.23,185.19,71.5]
[1762005292100,8.61607862,185.22,185.19,71.5]
[1762005292294,8.61607862,185.21,185.19,71.5]
[1762005292496,2.09943512,185.26,185.19,71.5]
[1762005292696,8.61839448,185.25,185.19,71.5]
[1762005292898,8.61839448,185.24,185.19,68.68]
[1762005293101,8.61839448,185.23,185.19,68.68]
[1762005293299,8.61839448,185.22,185.19,68.68]
[1762005293598,4.52217532,185.21,185.19,68.68]
[1762005293798,2.09943512,185.26,185.19,68.68]
[1762005293998,8.61721247,185.25,185.19,68.68]
[1762005294199,8.61721247,185.24,185.19,68.68]
[1762005294406,8.61721247,185.23,185.19,71.5]
[1762005294702,8.61721247,185.22,185.19,71.5]
[1762005294897,4.52154093,185.21,185.19,71.5]
[1762005295097,2.09943512,185.26,185.19,71.5]
[1762005295299,8.61831917,185.25,185.19,71.5]
[1762005295502,8.61831917,185.24,185.2,2.82]
[1762005295696,8.61831917,185.23,185.2,2.82]
[1762005295994,8.61831917,185.22,185.2,2.82]
[1762005296196,4.52210705,185.21,185.2,2.82]
[1762005297807,2.09943512,185.32,185.21,2.82]
[1762005298106,4.0980231,185.31,185.21,2.82]
[1762005298307,4.0980231,185.3,185.21,2.82]
[1762005298496,4.0980231,185.29,185.21,2.82]
[1762005298692,4.0980231,185.28,185.21,2.82]
[1762005298910,4.0980231,185.27,185.21,2.82]
[1762005299207,4.0980231,185.26,185.21,2.82]
[1762005299406,4.0980231,185.25,185.21,2.82]
[1762005299704,2.09943512,185.32,185.21,2.82]
[1762005299705,4.0980231,185.24,185.21,2.82]
[1762005299904,4.0980231,185.23,185.21,2.82]
[1762005300105,4.0980231,185.22,185.21,2.82]
[1762005301795,2.69,185.33,185.22,2.82]
[1762005302108,2.69,185.33,185.25,2.82]
[1762005303098,4.78943512,185.33,185.23,7.14470566]
[1762005303306,2.69,185.32,185.22,65.26527054]
[1762005303500,2.69,185.32,185.22,60.22]
[1762005304414,2.69,185.32,185.23,2.82]
[1762005307503,2.69,185.32,185.23,4.91943512]
[1762005309013,2.69,185.32,185.24,2.82]
[1762005309806,4.51871759,185.31,185.26,2.09943512]
[1762005310005,4.51871759,185.3,185.27,2.82]
[1762005310314,4.51871759,185.29,185.27,2.82]
[1762005310519,4.51871759,185.28,185.27,2.82]
[1762005313915,8.57370172,185.28,185.27,2.82]
[1762005318522,2.91,185.34,185.27,2.82]
[1762005318715,2.91,185.34,185.31,2.09943512]
[1762005320618,2.91,185.34,185.29,2.73]
[1762005320818,2.91,185.34,185.3,2.09943512]
[1762005322826,2.91,185.34,185.28,2.74]
[1762005330343,2.77,185.32,185.28,2.74]
[1762005330635,8.38123697,185.31,185.28,2.74]
[1762005330826,8.38123697,185.3,185.28,2.74]
[1762005331025,8.38123697,185.29,185.28,2.74]
[1762005337960,8.38208551,185.29,185.28,2.74]
[1762005338660,2.77,185.35,185.29,2.74]
[1762005338962,2.09943512,185.39,185.3,2.74]
[1762005338963,8.38530737,185.34,185.3,2.74]
[1762005339156,8.38530737,185.33,185.3,2.74]
[1762005339464,8.38530737,185.32,185.3,2.74]
[1762005339664,4.40970811,185.31,185.3,2.74]
[1762005340157,4.40960561,185.31,185.3,2.74]
[1762005341163,4.40971905,185.31,185.3,2.74]
[1762005341468,4.40971905,185.31,185.3,4.83943512]
[1762005341666,4.40971905,185.31,185.3,2.74]
[1762005342859,2.77,185.36,185.3,2.74]
[1762005343168,11.15659366,185.35,185.3,2.74]
[1762005343368,8.38659366,185.34,185.3,2.74]
[1762005343562,8.38659366,185.33,185.3,2.74]
[1762005343768,8.38659366,185.32,185.3,2.74]
[1762005343969,4.4100927,185.31,185.3,2.74]
[1762005344969,2.77,185.35,185.3,2.74]
[1762005345159,8.38747457,185.34,185.3,2.74]
[1762005345363,8.38747457,185.33,185.3,2.74]
[1762005345565,8.38747457,185.32,185.3,2.74]
[1762005345767,2.77,185.39,185.3,2.74]
[1762005345961,2.77,185.37,185.3,2.74]
[1762005346266,11.18663957,185.36,185.32,2.71]
[1762005346472,8.38663957,185.35,185.32,2.71]
[1762005346671,8.38663957,185.34,185.32,2.71]
[1762005346872,8.38663957,185.33,185.32,2.71]
[1762005353874,2.8,185.39,185.33,2.71]
[1762005354174,3.27596229,185.44,185.33,2.71]
[1762005354175,2.8,185.37,185.33,2.71]
[1762005354371,8.38904803,185.36,185.33,2.71]
[1762005354572,8.38904803,185.35,185.33,2.71]
[1762005354769,4.40178342,185.34,185.33,2.71]
[1762005355474,2.8,185.42,185.34,2.71]
[1762005355668,2.8,185.4,185.37,2.71]
[1762005355870,8.38967552,185.39,185.37,2.71]
[1762005356064,4.40098111,185.38,185.37,2.71]
[1762005358264,2.8,185.4,185.37,2.71]
[1762005358470,8.38159757,185.39,185.37,2.71]
[1762005358670,2.8,185.4,185.37,2.71]
[1762005358870,8.38159757,185.39,185.37,2.71]
[1762005359070,2.8,185.4,185.37,2.71]
[1762005359270,8.37987205,185.39,185.37,2.71]
[1762005359565,2.8,185.4,185.37,2.71]
[1762005359764,11.17987205,185.39,185.37,2.71]
[1762005359969,2.8,185.39,185.37,2.71]
[1762005360976,8.37979695,185.38,185.33,5.03846896]
[1762005361177,2.8,185.36,185.32,2.71]
[1762005361381,11.17887852,185.35,185.32,2.71]
[1762005361582,2.8,185.35,185.32,2.71]
[1762005362776,4.3968995,185.34,185.32,2.71]
[1762005362977,2.8,185.35,185.32,2.71]
[1762005363183,7.1968995,185.34,185.32,2.71]
[1762005363374,2.8,185.34,185.32,2.71]
[1762005364571,2.8,185.34,185.3,5.03846896]
[1762005364773,2.8,185.32,185.29,2.71]
[1762005364981,4.39699563,185.31,185.29,2.71]
[1762005365173,2.8,185.32,185.29,2.71]
[1762005365379,7.19757663,185.31,185.27,5.03846896]
[1762005365685,4.98352554,185.42,185.27,5.03846896]
[1762005365686,2.8,185.3,185.27,5.03846896]
[1762005366479,2.8,185.3,185.26,7.74846896]
[1762005367785,3.27596229,185.37,185.26,7.74846896]
[1762005367786,11.17924994,185.29,185.26,2.71]
[1762005367984,2.8,185.28,185.26,2.71]
[1762005371786,3.27596229,185.37,185.26,2.71]
[1762005371990,2.8,185.35,185.26,2.71]
[1762005372189,2.8,185.33,185.26,2.71]
[1762005372489,2.8,185.31,185.26,2.71]
[1762005372694,2.8,185.29,185.26,2.71]
[1762005373081,2.8,185.36,185.26,2.71]
[1762005373285,2.8,185.34,185.27,2.71]
[1762005373491,2.8,185.32,185.27,2.71]
[1762005373786,8.37901996,185.31,185.28,2.71]
[1762005373990,2.8,185.35,185.28,2.71]
[1762005374186,3.27596229,185.4,185.28,2.71]
[1762005374187,2.8,185.33,185.29,2.71]
[1762005374490,8.38040616,185.32,185.29,2.71]
[1762005374691,4.39786712,185.31,185.29,2.71]
[1762005374892,2.8,185.33,185.29,2.71]
[1762005375085,8.38091431,185.32,185.29,2.71]
[1762005375285,4.39811828,185.31,185.29,2.71]
[1762005375487,2.8,185.33,185.29,2.71]
[1762005375789,8.38142153,185.32,185.29,2.71]
[1762005375986,4.39838486,185.31,185.29,2.71]
[1762005376187,2.8,185.33,185.29,2.71]
[1762005376492,8.38195398,185.32,185.29,2.71]
[1762005376789,4.39866428,185.31,185.29,2.71]
[1762005376988,2.8,185.33,185.29,2.71]
[1762005377189,8.38195236,185.32,185.29,2.71]
[1762005377490,4.39866383,185.31,185.29,2.71]
[1762005377690,2.8,185.33,185.29,2.71]
[1762005377990,8.38250932,185.32,185.29,2.71]
[1762005378192,4.39895611,185.31,185.29,2.71]
[1762005378386,2.8,185.33,185.29,2.71]
[1762005378586,8.36969286,185.32,185.29,2.71]
[1762005378788,4.3992619,185.31,185.29,2.71]
[1762005378986,2.8,185.33,185.29,2.71]
[1762005379186,8.36969286,185.32,185.29,2.71]
[1762005379386,4.3992619,185.31,185.29,2.71]
[1762005379587,2.8,185.33,185.29,2.71]
[1762005379790,8.37030064,185.32,185.29,2.71]
[1762005379990,4.39958136,185.31,185.29,2.71]
[1762005380290,2.8,185.33,185.29,2.71]
[1762005380484,8.37094775,185.32,185.29,2.71]
[1762005380698,4.39992149,185.31,185.29,2.71]
[1762005380885,2.8,185.33,185.3,2.67]
[1762005381085,8.38812476,185.32,185.3,2.67]
[1762005381285,4.41692332,185.31,185.3,2.67]
[1762005381686,2.68,185.36,185.3,2.67]
[1762005381988,3.27596229,185.4,185.3,2.67]
[1762005381989,11.0687963,185.35,185.3,2.67]
[1762005382187,11.0687963,185.34,185.3,2.67]
[1762005382393,8.3887963,185.33,185.3,2.67]
[1762005382594,8.3887963,185.32,185.3,2.67]
[1762005382796,2.68,185.34,185.3,2.67]
[1762005382980,8.38874544,185.33,185.3,2.67]
[1762005383185,8.38874544,185.32,185.3,2.67]
[1762005383493,2.68,185.34,185.3,2.67]
[1762005383693,8.38940834,185.33,185.3,2.67]
[1762005383887,8.38940834,185.32,185.3,2.67]
[1762005384082,2.68,185.34,185.3,2.67]
[1762005384287,11.06938106,185.33,185.3,2.67]
[1762005384585,8.38938106,185.32,185.3,2.67]
[1762005384788,2.68,185.33,185.3,2.67]
[1762005385086,8.38937945,185.32,185.3,2.67]
[1762005385287,2.68,185.33,185.3,2.67]
[1762005385493,8.38938889,185.32,185.3,2.67]
[1762005385790,2.68,185.33,185.3,2.67]
[1762005385990,8.38938889,185.32,185.3,2.67]
[1762005386192,2.68,185.33,185.3,2.67]
[1762005386383,8.38939678,185.32,185.3,2.67]
[1762005386584,2.68,185.33,185.3,2.67]
[1762005386786,8.38907502,185.32,185.3,2.67]
[1762005386984,2.68,185.33,185.3,2.67]
[1762005387196,8.38909069,185.32,185.3,2.67]
[1762005387398,2.68,185.33,185.3,2.67]
[1762005387599,4.41732268,185.32,185.31,2.71]
[1762005388192,2.94,185.36,185.31,7.74668927]
[1762005388391,2.94,185.34,185.32,2.71]
[1762005388596,4.4171709,185.33,185.32,2.71]
[1762005388897,4.4171709,185.33,185.31,7.74668927]
[1762005389096,2.94,185.33,185.31,7.74668927]
[1762005392404,2.94,185.42,185.32,2.71]
[1762005392598,2.94,185.4,185.32,2.71]
[1762005392801,2.94,185.38,185.32,2.71]
[1762005393000,2.94,185.36,185.32,2.71]
[1762005393205,3.27596229,185.43,185.32,2.71]
[1762005393206,2.94,185.34,185.32,2.71]
[1762005393406,4.41655188,185.33,185.32,2.71]
[1762005395513,2.94,185.34,185.32,2.71]
[1762005395706,2.94,185.34,185.32,7.74668927]
[1762005397013,2.94,185.34,185.32,2.71]
[1762005398811,2.94,185.37,185.32,2.71]
[1762005399010,4.4170646,185.36,185.34,2.71]
[1762005399213,2.94,185.4,185.35,2.71]
[1762005399419,2.94,185.38,185.35,2.71]
[1762005399613,8.39025338,185.37,185.35,2.71]
[1762005399919,2.94,185.38,185.35,2.71]
[1762005400112,8.39026205,185.37,185.35,2.71]
[1762005400308,2.94,185.38,185.35,2.71]
[1762005400509,4.41611634,185.37,185.35,2.71]
[1762005400716,2.94,185.38,185.35,2.71]
[1762005400915,7.35594711,185.37,185.34,7.74668927]
[1762005401111,2.94,185.37,185.34,7.74668927]
[1762005401323,2.94,185.37,185.35,2.71]
[1762005407729,2.96,185.48,185.35,2.71]
[1762005408024,2.96,185.45,185.35,2.71]
[1762005408223,2.96,185.43,185.35,2.71]
[1762005408420,2.96,185.41,185.35,2.71]
[1762005408621,8.38155326,185.4,185.35,2.71]
[1762005408815,8.38155326,185.39,185.36,2.83]
[1762005409014,2.96,185.41,185.37,2.83]
[1762005409214,2.96,185.39,185.37,2.83]
[1762005409414,7.36996912,185.38,185.36,2.83]
[1762005409609,2.96,185.38,185.36,2.83]
[1762005410318,2.96,185.44,185.36,2.83]
[1762005410515,2.96,185.42,185.36,2.83]
[1762005410711,2.96,185.4,185.36,2.83]
[1762005410916,8.36382456,185.39,185.36,2.83]
[1762005411116,2.96,185.4,185.36,2.83]
[1762005411318,8.33160897,185.39,185.36,2.83]
[1762005411618,2.96,185.4,185.36,2.83]
[1762005411918,2.96,185.38,185.36,2.83]
[1762005412124,2.96,185.38,185.3,10.00198619]
[1762005412125,2.96,185.38,185.34,5.03611587]
[1762005412325,7.33681741,185.37,185.33,7.86611587]
[1762005412526,2.96,185.37,185.34,2.83]
[1762005413626,2.96,185.41,185.34,2.83]
[1762005413830,11.28978555,185.4,185.34,2.83]
[1762005414029,2.96,185.38,185.34,2.83]
[1762005414226,4.37744321,185.37,185.34,7.86611587]
[1762005414529,2.96,185.38,185.35,2.83]
[1762005414829,4.37784356,185.37,185.35,2.83]
[1762005415026,2.96,185.38,185.35,2.83]
[1762005415225,4.37784356,185.37,185.35,2.83]
[1762005415424,2.96,185.38,185.35,2.83]
[1762005415624,4.37847881,185.37,185.35,2.83]
[1762005415825,2.96,185.38,185.35,2.83]
[1762005416031,4.37834636,185.37,185.35,2.83]
[1762005416330,2.96,185.38,185.35,2.83]
[1762005416524,8.33332508,185.37,185.35,2.83]
[1762005416724,2.96,185.38,185.35,2.83]
[1762005416921,8.33332508,185.37,185.35,2.83]
[1762005417122,2.96,185.38,185.35,2.83]
[1762005417430,8.33339599,185.37,185.35,2.83]
[1762005417730,2.96,185.38,185.35,2.83]
[1762005417932,2.96,185.36,185.34,5.03611587]
[1762005418827,7.34124946,185.35,185.33,5.03611587]
[1762005419029,2.96,185.35,185.33,5.03611587]
[1762005419731,2.96,185.35,185.33,7.86611587]
[1762005421727,2.96,185.39,185.34,5.03611587]
[1762005421926,2.96,185.39,185.1,259.34319449]
[1762005421927,2.96,185.36,185.3,5.03611587]
[1762005422128,2.96,185.33,185.3,5.03611587]
[1762005422328,2.96,185.31,185.3,5.03611587]
[1762005427435,2.96,185.3,185.29,5.03611587]
[1762005427635,2.96,185.29,185.27,5.03611587]
[1762005427841,7.34308707,185.28,185.27,5.03611587]
[1762005428232,2.96,185.28,185.27,5.03611587]
[1762005428842,7.34175823,185.28,185.26,5.03611587]
[1762005429142,2.96,185.28,185.26,5.03611587]
[1762005429341,2.96,185.28,185.26,7.86611587]
[1762005429536,2.96,185.33,185.27,7.86611587]
[1762005429742,11.2932453,185.32,185.28,7.86611587]
[1762005429943,11.2932453,185.31,185.28,7.86611587]
[1762005430133,4.38091262,185.3,185.28,7.86611587]
[1762005430334,2.96,185.31,185.28,7.86611587]
[1762005430536,4.38041578,185.3,185.28,7.86611587]
[1762005430738,2.96,185.31,185.28,7.86611587]